fUSD/lending_fUSD_20240204
["ID","MTS","AMOUNT","RATE_DAILY","PERIOD"]
[313272124,1707063054036,-500.0,0.00046575,31]
[313272125,1707063054046,-500.0,0.00046575,31]
[313272126,1707063054056,-500.0,0.00046575,31]
[313272127,1707063054065,-500.0,0.00046575,31]
[313272128,1707063054075,-500.0,0.00046575,31]
[313272129,1707063054084,-500.0,0.00046575,31]
[313272130,1707063054093,-500.0,0.00046575,31]
[313272131,1707063054103,-500.0,0.00046575,31]
[313272132,1707063054113,-500.0,0.00046575,31]
[313272133,1707063054123,-500.0,0.00046575,31]
[313272134,1707063054132,-500.0,0.00046575,31]
[313272135,1707063054142,-500.0,0.00046575,31]
[313272136,1707063054152,-500.0,0.00046575,31]
[313272137,1707063054162,-500.0,0.00046575,31]
[313272138,1707063054172,-500.0,0.00046575,31]
[313272139,1707063054182,-500.0,0.00046575,31]
[313272140,1707063054192,-500.0,0.00046575,31]
[313272141,1707063054203,-500.0,0.00046575,31]
[313272142,1707063054212,-500.0,0.00046575,31]
[313272143,1707063054221,-500.0,0.00046575,31]
[313272144,1707063054234,-500.0,0.00046575,31]
[313272145,1707063054246,-1238.33,0.00046575,31]
[313272146,1707063054255,-500.0,0.00046575,31]
[313272147,1707063054265,-500.0,0.00046575,31]
[313272148,1707063054277,-500.0,0.00046575,31]
[313272149,1707063054288,-500.0,0.00046575,31]
[313272150,1707063054297,-500.0,0.00046575,31]
[313272151,1707063054307,-500.0,0.00046575,31]
[313272152,1707063054318,-500.0,0.00046575,31]
[313272153,1707063054328,-622.37209142,0.00046575,7]
[313272154,1707063054337,-500.0,0.00046575,31]
[313272155,1707063054347,-500.0,0.00046575,31]
[313272156,1707063054357,-500.0,0.00046575,31]
[313272157,1707063054368,-1047.55,0.00046575,31]
[313272158,1707063054378,-500.0,0.00046575,31]
[313272159,1707063054388,-312.0,0.0004659,2]
[313272160,1707063054400,-282.0,0.0004659,2]
[313272161,1707063054410,-202.88847941,0.00046598,4]
[313272162,1707063054419,-1047.52947857,0.00046598,4]
[313272163,1707063054429,-195.34051282,0.00046598,4]
[313272164,1707063054438,-613.47942238,0.00046598,4]
[313272165,1707063054449,-1723.51463944,0.00046599,4]
[313272166,1707063054460,-3316.11732634,0.000466,2]
[313272167,1707063054469,-8000.0,0.000466,2]
[313272168,1707063054479,-588.16615373,0.00046626,22]
[313272169,1707063054489,-154.98375468,0.00046633,30]
[313272170,1707063054498,-200.0,0.00046688,35]
[313272171,1707063054508,-1312.47357393,0.00046695,2]
[313272172,1707063054518,-200.0,0.000467,25]
[313272173,1707063054528,-26938.73,0.000467,7]
[313272174,1707063054537,-9110.8,0.000467,7]
[313272175,1707063054547,-14043.86,0.000467,7]
[313272176,1707063054556,-150.0,0.000467,18]
[313272177,1707063054565,-1328.11133558,0.00046775,2]
[313272178,1707063054575,-289.26100823,0.000468,60]
[313272179,1707063054586,-588.16615373,0.00046829,22]
[313272180,1707063054595,-5000.0,0.00046849,30]
[313272181,1707063054604,-5000.0,0.00046849,45]
[313272182,1707063054614,-1000.0,0.00046849,45]
[313272183,1707063054623,-5278.13,0.00046849,120]
[313272184,1707063054637,-7255.04951842,0.000469,40]
[313272185,1707063054647,-204412.56376552,0.0004693,3]
[313272186,1707063054656,-166.60561548,0.00047,4]
[313272187,1707063054667,-422.0136711,0.00047,30]
[313272188,1707063054679,-213.36,0.00047,7]
[313272189,1707063054689,-1435.08627348,0.00047,4]
[313272190,1707063054700,-1000.0,0.00047,2]
[313272191,1707063054711,-308.0,0.00047,37]
[313272192,1707063054721,-187.0,0.00047,30]
[313272193,1707063054731,-1000.0,0.00047,20]
[313272194,1707063054741,-1735.41475496,0.00047031,7]
[313272195,1707063054751,-588.16615373,0.00047031,22]
[313272196,1707063054763,-75064.34,0.00047097,5]
[313272197,1707063054773,-5000.0,0.00047123,30]
[313272198,1707063054783,-500.0,0.00047123,31]
[313272199,1707063054793,-508.71430477,0.00047123,7]
[313272200,1707063054803,-1000.0,0.00047123,7]
[313272201,1707063054814,-582.50397792,0.00047123,31]
[313272202,1707063054823,-500.0,0.00047123,31]
[313272203,1707063054835,-616.29959921,0.00047123,31]
[313272204,1707063054846,-500.0,0.00047123,31]
[313272205,1707063054857,-241.6343183,0.00047123,31]
[313272206,1707063054867,-500.0,0.00047123,31]
[313272207,1707063054878,-525.37145246,0.00047123,31]
[313272208,1707063054888,-386.48052404,0.00047123,31]
[313272209,1707063054897,-500.0,0.00047123,31]
[313272210,1707063054907,-500.0,0.00047123,31]
[313272211,1707063054916,-518.3459904,0.00047123,31]
[313272212,1707063054925,-417.81384553,0.00047123,31]
[313272213,1707063054936,-500.0,0.00047123,31]
[313272214,1707063054947,-318.38129362,0.00047123,31]
[313272215,1707063054958,-426.54033927,0.00047123,7]
[313272216,1707063054967,-500.0,0.00047123,31]
[313272217,1707063054977,-630.27,0.00047123,31]
[313272218,1707063054988,-292.70411797,0.00047123,31]
[313272219,1707063054997,-531.43256469,0.00047123,31]
[313272220,1707063055007,-511.44431261,0.00047123,31]
[313272221,1707063055016,-617.63181686,0.00047123,31]
[313272222,1707063055026,-1025.64188683,0.00047123,120]
[313272223,1707063055035,-500.0,0.00047123,2]
[313272224,1707063055045,-500.0,0.00047123,31]
[313272225,1707063055054,-154.8373976,0.00047123,31]
[313272226,1707063055064,-512.10468242,0.00047123,31]
[313272227,1707063055075,-500.0,0.00047123,31]
[313272228,1707063055084,-500.0,0.00047123,31]
[313272229,1707063055093,-500.0,0.00047123,31]
[313272230,1707063055103,-595.86854303,0.00047123,31]
[313272231,1707063055112,-519.80554126,0.00047123,31]
[313272232,1707063055123,-182.52005538,0.00047123,31]
[313272233,1707063055133,-500.0,0.00047123,31]
[313272234,1707063055142,-586.70314899,0.00047123,31]
[313272235,1707063055151,-224.94279616,0.00047123,31]
[313272236,1707063055161,-532.59677335,0.00047123,31]
[313272237,1707063055170,-521.33454036,0.00047123,7]
[313272238,1707063055179,-536.06519236,0.00047123,31]
[313272239,1707063055188,-364.29002586,0.00047123,31]
[313272240,1707063055197,-500.0,0.00047123,31]
[313272241,1707063055206,-500.0,0.00047123,31]
[313272242,1707063055215,-532.40599634,0.00047123,31]
[313272243,1707063055225,-500.0,0.00047123,31]
[313272244,1707063055238,-500.0,0.00047123,31]
[313272245,1707063055332,-512.07418932,0.00047123,31]
[313272246,1707063055349,-500.0,0.00047123,31]
[313272247,1707063055358,-563.63685547,0.00047123,31]
[313272248,1707063055367,-500.0,0.00047123,31]
[313272249,1707063055377,-529.92906703,0.00047123,31]
[313272250,1707063055386,-637.9354899,0.00047123,31]
[313272251,1707063055395,-500.0,0.00047123,31]
[313272252,1707063055405,-500.0,0.00047123,31]
[313272253,1707063055414,-518.19549821,0.00047123,31]
[313272254,1707063055423,-257.02772275,0.00047123,31]
[313272255,1707063055433,-500.0,0.00047123,31]
[313272256,1707063055442,-574.25213304,0.00047123,31]
[313272257,1707063055452,-509.08903532,0.00047123,31]
[313272258,1707063055461,-500.0,0.00047123,31]
[313272259,1707063055470,-911.45,0.00047123,30]
[313272260,1707063055479,-500.0,0.00047123,31]
[313272261,1707063055489,-553.56356057,0.00047123,31]
[313272262,1707063055498,-561.40848934,0.00047123,31]
[313272263,1707063055507,-500.0,0.00047123,31]
[313272264,1707063055517,-500.0,0.00047123,31]
[313272265,1707063055526,-500.0,0.00047123,31]
[313272266,1707063055535,-364.36222544,0.00047123,31]
[313272267,1707063055544,-500.0,0.00047123,31]
[313272268,1707063055554,-500.0,0.00047123,31]
[313272269,1707063055563,-500.0,0.00047123,31]
[313272270,1707063055573,-500.0,0.00047123,31]
[313272271,1707063055581,-563.95829717,0.00047123,31]
[313272272,1707063055590,-306.33921382,0.00047123,31]
[313272273,1707063055600,-619.44,0.00047123,31]
[313272274,1707063055609,-500.0,0.00047123,31]
[313272275,1707063055618,-500.0,0.00047123,31]
[313272276,1707063055627,-192.17316151,0.00047123,31]
[313272277,1707063055636,-500.0,0.00047123,31]
[313272278,1707063055646,-500.0,0.00047123,7]
[313272279,1707063055655,-509.19996442,0.00047123,31]
[313272280,1707063055665,-630.13,0.00047123,31]
[313272281,1707063055674,-637.66026096,0.00047123,31]
[313272282,1707063055684,-500.0,0.00047123,31]
[313272283,1707063055693,-500.0,0.00047123,31]
[313272284,1707063055703,-500.0,0.00047123,31]
[313272285,1707063055713,-500.0,0.00047123,30]
[313272286,1707063055722,-1927.47,0.00047123,31]
[313272287,1707063055731,-500.0,0.00047123,31]
[313272288,1707063055740,-500.0,0.00047123,31]
[313272289,1707063055749,-536.43570392,0.00047123,31]
[313272290,1707063055760,-500.0,0.00047123,31]
[313272291,1707063055770,-480.25572118,0.00047123,31]
[313272292,1707063055779,-262.23799802,0.00047123,31]
[313272293,1707063055789,-500.0,0.00047123,31]
[313272294,1707063055799,-567.59016109,0.00047123,31]
[313272295,1707063055809,-557.41000602,0.00047123,31]
[313272296,1707063055818,-500.0,0.00047123,31]
[313272297,1707063055827,-500.0,0.00047123,31]
[313272298,1707063055836,-371.34846298,0.00047123,31]
[313272299,1707063055846,-544.49340942,0.00047123,31]
[313272300,1707063055855,-373.09622719,0.00047123,31]
[313272301,1707063055865,-500.0,0.00047123,31]
[313272302,1707063055876,-1188.46,0.00047123,31]
[313272303,1707063055885,-557.63652515,0.00047123,31]
[313272304,1707063055895,-500.0,0.00047123,31]
[313272305,1707063055905,-169.89326847,0.00047123,31]
[313272306,1707063055915,-500.0,0.00047123,31]
[313272307,1707063055926,-1140.37,0.00047123,31]
[313272308,1707063055936,-476.35109648,0.00047123,31]
[313272309,1707063055947,-535.99427705,0.00047123,31]
[313272310,1707063055957,-500.0,0.00047123,31]
[313272311,1707063055969,-578.88946099,0.00047123,31]
[313272312,1707063055979,-163.82384529,0.00047123,31]
[313272313,1707063055991,-541.26607288,0.00047123,31]
[313272314,1707063056001,-500.0,0.00047123,31]
[313272315,1707063056011,-500.0,0.00047123,31]
[313272316,1707063056020,-265.15113864,0.00047123,31]
[313272317,1707063056029,-500.0,0.00047123,31]
[313272318,1707063056039,-500.0,0.00047123,31]
[313272319,1707063056050,-500.0,0.00047123,31]
[313272320,1707063056060,-535.05710505,0.00047123,31]
[313272321,1707063056072,-574.60164074,0.00047123,31]
[313272322,1707063056082,-500.0,0.00047123,31]
[313272323,1707063056093,-521.84194172,0.00047123,31]
[313272324,1707063056103,-500.0,0.00047123,31]
[313272325,1707063056114,-557.26238838,0.00047123,31]
[313272326,1707063056126,-4970.02,0.00047123,31]
[313272327,1707063056134,-548.85495147,0.00047123,31]
[313272328,1707063056144,-777.44,0.00047123,20]
[313272329,1707063056153,-399.60912446,0.00047123,31]
[313272330,1707063056162,-500.0,0.00047123,31]
[313272331,1707063056172,-501.91007744,0.00047123,31]
[313272332,1707063056181,-557.92088797,0.00047123,31]
[313272333,1707063056190,-5000.0,0.00047123,50]
[313272334,1707063056200,-500.0,0.00047123,31]
[313272335,1707063056211,-175.27233615,0.00047123,31]
[313272336,1707063056220,-301.0079095,0.00047123,31]
[313272337,1707063056229,-529.84402933,0.00047123,31]
[313272338,1707063056242,-500.0,0.00047123,31]
[313272339,1707063056251,-500.0,0.00047123,31]
[313272340,1707063056260,-259.79532937,0.00047123,31]
[313272341,1707063056269,-647.70784198,0.00047123,31]
[313272342,1707063056279,-500.0,0.00047123,31]
[313272343,1707063056289,-560.00410489,0.00047123,31]
[313272344,1707063056298,-336.88544045,0.00047123,31]
[313272345,1707063056309,-317.10986073,0.00047123,31]
[313272346,1707063056319,-500.0,0.00047123,31]
[313272347,1707063056330,-546.51049633,0.00047123,31]
[313272348,1707063056339,-500.0,0.00047123,31]
[313272349,1707063056349,-500.0,0.00047123,31]
[313272350,1707063056358,-516.41894946,0.00047123,31]
[313272351,1707063056367,-573.85839693,0.00047123,31]
[313272352,1707063056377,-500.0,0.00047123,31]
[313272353,1707063056386,-541.64325533,0.00047123,31]
[313272354,1707063056395,-289.07312009,0.00047123,31]
[313272355,1707063056405,-510.27567098,0.00047123,5]
[313272356,1707063056414,-500.0,0.00047123,31]
[313272357,1707063056423,-620.45909848,0.00047123,31]
[313272358,1707063056432,-545.32439729,0.00047123,31]
[313272359,1707063056441,-520.78799629,0.00047123,31]
[313272360,1707063056451,-500.0,0.00047123,31]
[313272361,1707063056461,-295.42905703,0.00047123,31]
[313272362,1707063056471,-500.0,0.00047123,31]
[313272363,1707063056480,-500.0,0.00047123,31]
[313272364,1707063056489,-207.28689141,0.00047123,31]
[313272365,1707063056500,-242.64229742,0.00047123,31]
[313272366,1707063056510,-583.81,0.00047123,10]
[313272367,1707063056521,-500.0,0.00047123,31]
[313272368,1707063056531,-567.70606186,0.00047123,31]
[313272369,1707063056542,-151.13519329,0.00047123,31]
[313272370,1707063056551,-500.0,0.00047123,31]
[313272371,1707063056561,-563.45706405,0.00047123,31]
[313272372,1707063056572,-304.84446749,0.00047123,31]
[313272373,1707063056584,-500.0,0.00047123,31]
[313272374,1707063056594,-1109.96,0.00047123,31]
[313272375,1707063056603,-578.49740997,0.00047123,31]
[313272376,1707063056614,-570.50024129,0.00047123,31]
[313272377,1707063056624,-1000.0,0.00047123,30]
[313272378,1707063056634,-539.74519987,0.00047123,31]
[313272379,1707063056644,-313.47843984,0.00047123,31]
[313272380,1707063056654,-153.42132872,0.00047123,31]
[313272381,1707063056663,-500.0,0.00047123,31]
[313272382,1707063056673,-1000.0,0.00047123,50]
[313272383,1707063056682,-188.9983761,0.00047123,31]
[313272384,1707063056692,-500.0,0.00047123,31]
[313272385,1707063056702,-547.81197624,0.00047123,31]
[313272386,1707063056713,-500.0,0.00047123,10]
[313272387,1707063056724,-580.32698479,0.00047123,31]
[313272388,1707063056734,-539.2553977,0.00047123,31]
[313272389,1707063056744,-500.0,0.00047123,31]
[313272390,1707063056754,-500.0,0.00047123,31]
[313272391,1707063056841,-500.0,0.00047123,31]
[313272392,1707063056852,-500.0,0.00047123,31]
[313272393,1707063056863,-500.0,0.00047123,31]
[313272394,1707063056874,-500.0,0.00047123,31]
[313272395,1707063056883,-500.0,0.00047123,31]
[313272396,1707063056894,-500.0,0.00047123,31]
[313272397,1707063056904,-500.0,0.00047123,31]
[313272398,1707063056915,-500.0,0.00047123,31]
[313272399,1707063056926,-562.50832563,0.00047123,31]
[313272400,1707063056935,-191.94209521,0.00047123,31]
[313272401,1707063056944,-604.68079458,0.00047123,31]
[313272402,1707063056955,-500.0,0.00047123,31]
[313272403,1707063056964,-500.0,0.00047123,31]
[313272404,1707063056974,-500.0,0.00047123,31]
[313272405,1707063056986,-500.0,0.00047123,31]
[313272406,1707063056995,-551.1588703,0.00047123,31]
[313272407,1707063057006,-500.0,0.00047123,31]
[313272408,1707063057018,-500.0,0.00047123,31]
[313272409,1707063057027,-4813.6,0.00047123,31]
[313272410,1707063057038,-258.62060234,0.00047123,31]
[313272411,1707063057048,-587.95,0.00047123,31]
[313272412,1707063057058,-500.0,0.00047123,31]
[313272413,1707063057067,-554.47530321,0.00047123,31]
[313272414,1707063057078,-502.67403989,0.00047123,31]
[313272415,1707063057089,-561.40044257,0.00047123,31]
[313272416,1707063057099,-221.47599294,0.00047123,31]
[313272417,1707063057109,-548.32153943,0.00047123,31]
[313272418,1707063057120,-303.31968887,0.00047123,31]
[313272419,1707063057130,-642.42015834,0.00047123,31]
[313272420,1707063057139,-500.0,0.00047123,31]
[313272421,1707063057149,-500.0,0.00047123,31]
[313272422,1707063057158,-500.0,0.00047123,31]
[313272423,1707063057168,-500.0,0.00047123,7]
[313272424,1707063057178,-500.0,0.00047123,31]
[313272425,1707063057188,-351.83399129,0.00047123,31]
[313272426,1707063057198,-500.0,0.00047123,31]
[313272427,1707063057208,-500.0,0.00047123,31]
[313272428,1707063057217,-500.0,0.00047123,31]
[313272429,1707063057227,-500.0,0.00047123,31]
[313272430,1707063057240,-500.0,0.00047123,31]
[313272431,1707063057252,-598.86916979,0.00047123,31]
[313272432,1707063057262,-500.0,0.00047123,31]
[313272433,1707063057272,-500.0,0.00047123,31]
[313272434,1707063057282,-500.0,0.00047123,31]
[313272435,1707063057291,-157.3426283,0.00047123,31]
[313272436,1707063057301,-500.0,0.00047123,31]
[313272437,1707063057311,-500.0,0.00047123,31]
[313272438,1707063057321,-562.93855781,0.00047123,31]
[313272439,1707063057334,-500.0,0.00047123,31]
[313272440,1707063057344,-500.0,0.00047123,31]
[313272441,1707063057354,-500.0,0.00047123,31]
[313272442,1707063057363,-500.0,0.00047123,31]
[313272443,1707063057373,-581.43254556,0.00047123,31]
[313272444,1707063057382,-500.0,0.00047123,31]
[313272445,1707063057392,-500.0,0.00047123,31]
[313272446,1707063057401,-500.0,0.00047123,31]
[313272447,1707063057410,-500.0,0.00047123,31]
[313272448,1707063057421,-500.0,0.00047123,31]
[313272449,1707063057430,-500.0,0.00047123,31]
[313272450,1707063057440,-500.0,0.00047123,31]
[313272451,1707063057450,-500.0,0.00047123,31]
[313272452,1707063057460,-500.0,0.00047123,31]
[313272453,1707063057470,-500.0,0.00047123,31]
[313272454,1707063057480,-639.96237578,0.00047123,31]
[313272455,1707063057490,-500.0,0.00047123,31]
[313272456,1707063057499,-2089.65,0.00047123,5]
[313272457,1707063057509,-225.2773919,0.00047123,31]
[313272458,1707063057518,-289.03213823,0.00047123,31]
[313272459,1707063057527,-2006.88,0.00047123,31]
[313272460,1707063057538,-500.0,0.00047123,31]
[313272461,1707063057547,-933.81,0.00047123,31]
[313272462,1707063057557,-500.0,0.00047123,31]
[313272463,1707063057566,-500.0,0.00047123,31]
[313272464,1707063057577,-500.0,0.00047123,31]
[313272465,1707063057586,-109.38814965,0.00047123,31]
[313272466,1707063057810,-462.13185035,0.00047123,31]
[313272467,1707063057819,-500.0,0.00047123,31]
[313272468,1707063057828,-106.56814895,0.00047123,31]
[313272469,1707063058050,-590.95400001,0.00022887,2]
[313272470,1707063058073,-4409.04599999,0.00022887,2]
[313272471,1707063058083,-206.95528197,0.00041058,13]
[313272472,1707063058094,-1000.0,0.00042205,2]
[313272473,1707063058105,-1000.0,0.00043677,2]
[313272474,1707063058115,-1000.0,0.00045149,2]
[313272475,1707063058125,-393.43185105,0.00047123,31]
[313272476,1707063058134,-500.0,0.00047123,31]
[313272477,1707063058144,-500.0,0.00047123,31]
[313272478,1707063058153,-500.0,0.00047123,31]
[313272479,1707063058162,-500.0,0.00047123,31]
[313272480,1707063058171,-3386.39,0.00047123,31]
[313272481,1707063058180,-500.0,0.00047123,31]
[313272482,1707063058189,-500.0,0.00047123,31]
[313272483,1707063058200,-500.0,0.00047123,31]
[313272484,1707063058208,-354.86900907,0.00047123,31]
[313272485,1707063058217,-516.75147983,0.00047123,31]
[313272486,1707063058226,-500.0,0.00047123,31]
[313272487,1707063058237,-500.0,0.00047123,31]
[313272488,1707063058246,-500.0,0.00047123,31]
[313272489,1707063058256,-500.0,0.00047123,31]
[313272490,1707063058265,-500.0,0.00047123,31]
[313272491,1707063058275,-500.0,0.00047123,31]
[313272492,1707063058285,-500.0,0.00047123,31]
[313272493,1707063058294,-500.0,0.00047123,31]
[313272494,1707063058304,-500.0,0.00047123,31]
[313272495,1707063058316,-500.0,0.00047123,31]
[313272496,1707063058325,-500.0,0.00047123,31]
[313272497,1707063058334,-500.0,0.00047123,31]
[313272498,1707063058344,-500.0,0.00047123,31]
[313272499,1707063058353,-500.0,0.00047123,31]
[313272500,1707063058363,-500.0,0.00047123,31]
[313272501,1707063058374,-500.0,0.00047123,31]
[313272502,1707063058383,-500.0,0.00047123,31]
[313272503,1707063058393,-500.0,0.00047123,31]
[313272504,1707063058402,-500.0,0.00047123,31]
[313272505,1707063058411,-500.0,0.00047123,31]
[313272506,1707063058421,-500.0,0.00047123,31]
[313272507,1707063058430,-758.68,0.00047123,31]
[313272508,1707063058439,-595.70106628,0.00047123,31]
[313272509,1707063058449,-500.0,0.00047123,31]
[313272510,1707063058459,-500.0,0.00047123,31]
[313272511,1707063058470,-500.0,0.00047123,31]
[313272512,1707063058480,-500.0,0.00047123,31]
[313272513,1707063058491,-500.0,0.00047123,31]
[313272514,1707063058500,-500.0,0.00047123,31]
[313272515,1707063058509,-500.0,0.00047123,31]
[313272516,1707063058519,-500.0,0.00047123,31]
[313272517,1707063058529,-500.01014741,0.00047123,31]
[313272518,1707063058538,-500.0,0.00047123,31]
[313272519,1707063058547,-500.0,0.00047123,31]
[313272520,1707063058557,-500.0,0.00047123,31]
[313272521,1707063058567,-500.0,0.00047123,31]
[313272522,1707063058576,-500.0,0.00047123,31]
[313272523,1707063058587,-574.68549171,0.00047123,31]
[313272524,1707063058597,-555.19413941,0.00047123,31]
[313272525,1707063058607,-500.0,0.00047123,31]
[313272526,1707063058616,-721.18,0.00047123,31]
[313272527,1707063058625,-4160.16,0.00047123,31]
[313272528,1707063058636,-500.0,0.00047123,31]
[313272529,1707063058645,-561.78978141,0.00047123,31]
[313272530,1707063058663,-620.28062518,0.00047123,31]
[313272531,1707063058681,-500.0,0.00047123,31]
[313272532,1707063058699,-564.72204632,0.00047123,31]
[313272533,1707063058718,-500.0,0.00047123,31]
[313272534,1707063058734,-565.72874944,0.00047123,31]
[313272535,1707063058753,-500.0,0.00047123,31]
[313272536,1707063058771,-613.87618996,0.00047123,31]
[313272537,1707063058786,-500.0,0.00047123,31]
[313272538,1707063058806,-500.0,0.00047123,31]
[313272539,1707063058822,-500.0,0.00047123,31]
[313272540,1707063058841,-500.0,0.00047123,31]
[313272541,1707063058862,-500.0,0.00047123,31]
[313272542,1707063058878,-578.8272822,0.00047123,31]
[313272543,1707063058891,-500.0,0.00047123,31]
[313272544,1707063058909,-500.0,0.00047123,31]
[313272545,1707063058924,-500.0,0.00047123,31]
[313272546,1707063058938,-500.0,0.00047123,31]
[313272547,1707063058954,-500.0,0.00047123,31]
[313272548,1707063058968,-500.0,0.00047123,31]
[313272549,1707063058984,-500.0,0.00047123,31]
[313272550,1707063058998,-578.81473561,0.00047123,31]
[313272551,1707063059012,-500.0,0.00047123,31]
[313272552,1707063059027,-556.52816485,0.00047123,31]
[313272553,1707063059042,-500.0,0.00047123,31]
[313272554,1707063059057,-500.0,0.00047123,31]
[313272555,1707063059072,-500.0,0.00047123,31]
[313272556,1707063059087,-500.0,0.00047123,31]
[313272557,1707063059102,-540.40254661,0.00047123,31]
[313272558,1707063059118,-500.0,0.00047123,31]
[313272559,1707063059132,-322.94349907,0.00047123,31]
[313272560,1707063059147,-547.27994779,0.00047123,31]
[313272561,1707063059161,-1252.23,0.00047123,31]
[313272562,1707063059178,-588.41032057,0.00047123,31]
[313272563,1707063059193,-322.57843528,0.00047123,31]
[313272564,1707063059204,-500.0,0.00047123,31]
[313272565,1707063059215,-549.38438862,0.00047123,31]
[313272566,1707063059224,-500.0,0.00047123,31]
[313272567,1707063059233,-500.0,0.00047123,31]
[313272568,1707063059247,-500.0,0.00047123,31]
[313272569,1707063059259,-1000.0,0.00047123,7]
[313272570,1707063059268,-500.0,0.00047123,31]
[313272571,1707063059279,-278.25848739,0.00047123,31]
[313272572,1707063059289,-2478.43,0.00047123,5]
[313272573,1707063059299,-172.95631143,0.00047123,31]
[313272574,1707063059309,-500.0,0.00047123,31]
[313272575,1707063059319,-609.32180262,0.00047123,31]
[313272576,1707063059329,-586.96,0.00047123,31]
[313272577,1707063059338,-605.42436893,0.00047123,31]
[313272578,1707063059348,-1000.0,0.00047123,7]
[313272579,1707063059359,-571.52822972,0.00047123,31]
[313272580,1707063059368,-500.0,0.00047123,31]
[313272581,1707063059378,-523.43,0.00047123,31]
[313272582,1707063059387,-500.0,0.00047123,31]
[313272583,1707063059397,-500.0,0.00047123,31]
[313272584,1707063059407,-500.0,0.00047123,31]
[313272585,1707063059417,-500.0,0.00047123,31]
[313272586,1707063059426,-500.0,0.00047123,31]
[313272587,1707063059437,-500.0,0.00047123,31]
[313272588,1707063059447,-827.2,0.00047123,31]
[313272589,1707063059458,-500.0,0.00047123,31]
[313272590,1707063059469,-500.0,0.00047123,31]
[313272591,1707063059698,-500.0,0.00047123,31]
[313272592,1707063059713,-500.0,0.00047123,31]
[313272593,1707063059728,-330.58448881,0.00047123,31]
[313272594,1707063059738,-500.0,0.00047123,31]
[313272595,1707063059747,-500.0,0.00047123,31]
[313272596,1707063059757,-500.0,0.00047123,31]
[313272597,1707063059766,-500.0,0.00047123,31]
[313272598,1707063059776,-500.0,0.00047123,31]
[313272599,1707063059786,-500.0,0.00047123,31]
[313272600,1707063059796,-500.0,0.00047123,31]
[313272601,1707063059805,-500.0,0.00047123,31]
[313272602,1707063059814,-500.0,0.00047123,31]
[313272603,1707063059824,-533.01543278,0.00047123,31]
[313272604,1707063059833,-500.0,0.00047123,31]
[313272605,1707063059843,-500.0,0.00047123,31]
[313272606,1707063059852,-500.0,0.00047123,31]
[313272607,1707063059861,-500.0,0.00047123,31]
[313272608,1707063059871,-500.0,0.00047123,31]
[313272609,1707063059880,-812.77,0.00047123,31]
[313272610,1707063059890,-500.0,0.00047123,31]
[313272611,1707063059899,-557.79014986,0.00047123,31]
[313272612,1707063059908,-222.47161813,0.00047123,31]
[313272613,1707063059917,-639.65067973,0.00047123,31]
[313272614,1707063059926,-543.28760582,0.00047123,31]
[313272615,1707063059935,-202.60089597,0.00047123,31]
[313272616,1707063059945,-500.0,0.00047123,31]
[313272617,1707063059954,-500.0,0.00047123,31]
[313272618,1707063059964,-165.7869106,0.00047123,31]
[313272619,1707063059973,-623.55705245,0.00047123,31]
[313272620,1707063059982,-629.50038107,0.00047123,31]
[313272621,1707063059992,-500.0,0.00047123,31]
[313272622,1707063060001,-196.63439808,0.00047123,31]
[313272623,1707063060010,-500.0,0.00047123,31]